bitfinex/quotes_BTCUSD_20240918
["timestamp","ask_amount","ask_price","bid_price","bid_amount"]
[1726637950277,0.001646,60412.0,60411.0,1.59490461]
[1726637950573,0.001646,60412.0,60411.0,1.59390461]
[1726637950804,0.001646,60412.0,60411.0,1.59490461]
[1726637951491,0.001646,60412.0,60411.0,1.26283961]
[1726637951733,0.001646,60412.0,60411.0,0.66370853]
[1726637951967,0.002646,60412.0,60411.0,0.66370853]
[1726637952202,0.002646,60412.0,60411.0,0.99477353]
[1726637952434,0.002646,60412.0,60411.0,0.99377353]
[1726637952651,0.002646,60412.0,60411.0,0.99477353]
[1726637952923,0.010646,60412.0,60411.0,0.99477353]
[1726637953153,0.001646,60412.0,60411.0,0.99377353]
[1726637953618,0.004646,60412.0,60411.0,0.99377353]
[1726637954369,0.004646,60412.0,60411.0,0.66270853]
[1726637955743,0.001646,60412.0,60411.0,0.99377353]
[1726637956228,0.002646,60412.0,60411.0,0.99377353]
[1726637957453,0.002646,60412.0,60411.0,1.09343961]
[1726637957698,0.002646,60412.0,60411.0,1.19143961]
[1726637958157,0.002646,60412.0,60411.0,1.52250461]
[1726637958638,0.002646,60412.0,60411.0,1.19143961]
[1726637959117,0.002646,60412.0,60411.0,1.09177353]
[1726637963527,0.002646,60412.0,60411.0,0.99377353]
[1726637964211,0.002646,60412.0,60411.0,1.32483853]
[1726637964467,0.002646,60412.0,60411.0,0.99377353]
[1726637968070,0.002646,60412.0,60411.0,0.66270853]
[1726637968525,0.002646,60412.0,60411.0,0.16858986]
[1726637969188,0.02022215,60412.0,60411.0,0.49965486]
[1726637969680,0.002646,60412.0,60411.0,0.49965486]
[1726637969906,0.02022215,60412.0,60411.0,0.49965486]
[1726637970126,0.002646,60412.0,60411.0,0.49965486]
[1726637970366,0.18575215,60412.0,60411.0,0.00305786]
[1726637970595,0.266176,60412.0,60411.0,0.00305786]
[1726637970819,0.61480789,60412.0,60411.0,0.00305786]
[1726637971065,0.28374789,60412.0,60411.0,0.00305786]
[1726637971741,0.11821789,60412.0,60411.0,0.00305786]
[1726637973134,0.02021789,60412.0,60411.0,0.26825594]
[1726637973710,0.002646,60412.0,60411.0,0.26825594]
[1726637974399,0.02126512,60412.0,60411.0,0.59932094]
[1726637974646,0.002646,60412.0,60411.0,0.59932094]
[1726637974879,0.02126512,60412.0,60411.0,0.59932094]
[1726637975114,0.002646,60412.0,60411.0,0.59932094]
[1726637978481,0.002646,60412.0,60411.0,0.93038594]
[1726637978712,0.002646,60412.0,60411.0,1.09343961]
[1726637981321,0.001646,60412.0,60411.0,1.09343961]
[1726637981549,0.001646,60412.0,60411.0,1.42450461]
[1726637982002,0.001646,60412.0,60411.0,1.42550461]
[1726637982435,0.001646,60412.0,60411.0,1.42450461]
[1726637982690,0.001646,60412.0,60411.0,1.42550461]
[1726637983597,0.001646,60412.0,60411.0,1.42450461]
[1726637984286,0.001646,60412.0,60411.0,1.47413806]
[1726637985408,0.001646,60412.0,60411.0,1.42450461]
[1726637985553,0.001646,60412.0,60411.0,1.42550461]
[1726637987849,0.001646,60412.0,60411.0,1.49995479]
[1726637988531,0.001646,60412.0,60411.0,1.50006046]
[1726637989266,0.001646,60412.0,60411.0,1.52491242]
[1726637989487,0.001646,60412.0,60411.0,1.52250461]
[1726637991544,0.001646,60412.0,60411.0,1.52450461]
[1726637992880,0.001646,60412.0,60411.0,1.52350461]
[1726637993070,0.002646,60412.0,60411.0,1.52450461]
[1726637993514,0.002646,60412.0,60411.0,1.85556961]
[1726637994837,0.003646,60412.0,60411.0,1.85856961]
[1726637995588,0.003646,60412.0,60411.0,1.88856961]
[1726637997478,0.003646,60412.0,60411.0,2.55164938]
[1726637997693,0.003646,60412.0,60411.0,2.42150039]
[1726637998387,0.002646,60412.0,60411.0,2.42050039]
[1726637998606,0.001646,60412.0,60411.0,2.08643539]
[1726637998827,0.002646,60412.0,60411.0,2.09043539]
[1726637999047,0.003646,60412.0,60411.0,2.09334644]
[1726637999328,0.002646,60412.0,60411.0,2.08934644]
[1726637999575,0.003646,60412.0,60411.0,2.24218972]
[1726637999777,0.003646,60412.0,60411.0,2.09334644]
[1726638000888,0.003646,60412.0,60411.0,2.42441144]
[1726638004570,0.003646,60412.0,60411.0,2.57313899]
[1726638004797,0.003646,60412.0,60411.0,2.57312421]
[1726638005264,0.003646,60412.0,60411.0,2.55436216]
[1726638005487,0.003646,60412.0,60411.0,2.57312416]
[1726638005764,0.00079326,60412.0,60411.0,2.57312416]
[1726638006689,0.00079326,60412.0,60411.0,2.42439661]
[1726638006916,0.00079326,60412.0,60411.0,2.09333161]
[1726638007145,0.00079326,60412.0,60411.0,2.07456961]
[1726638007372,0.00079326,60412.0,60411.0,2.09332262]
[1726638007569,0.00079326,60412.0,60411.0,2.07256961]
[1726638008058,0.00079326,60412.0,60411.0,2.04956961]
[1726638008716,0.00079326,60412.0,60411.0,1.55572232]
[1726638009218,0.00079326,60412.0,60411.0,1.42883853]
[1726638009686,0.00179326,60412.0,60411.0,1.43783853]
[1726638010383,0.002646,60412.0,60411.0,1.43383853]
[1726638010608,0.003646,60412.0,60411.0,1.44183853]
[1726638010886,0.002646,60412.0,60411.0,1.43283853]
[1726638011592,0.003646,60412.0,60411.0,1.43983853]
[1726638015358,0.003646,60412.0,60411.0,1.56372232]
[1726638016722,0.003646,60412.0,60411.0,1.55772232]
[1726638017421,0.003646,60412.0,60411.0,1.57617484]
[1726638017883,0.003646,60412.0,60411.0,1.45229177]
[1726638018107,0.003646,60412.0,60411.0,1.43383853]
[1726638019338,0.003646,60412.0,60411.0,1.45889887]
[1726638021866,0.003646,60412.0,60411.0,1.45972187]
[1726638025186,0.003646,60412.0,60411.0,1.45968661]
[1726638025440,0.02961268,60412.0,60411.0,1.44129353]
[1726638025666,0.02961268,60412.0,60411.0,1.45968663]
[1726638027575,0.02961268,60412.0,60411.0,1.46168663]
[1726638028022,0.02961268,60412.0,60411.0,1.45968663]
[1726638028483,0.02961268,60412.0,60411.0,1.60852346]
[1726638028933,0.02961268,60412.0,60411.0,1.44129353]
[1726638029172,0.02961268,60412.0,60411.0,1.45966141]
[1726638029408,0.003646,60412.0,60411.0,1.46166141]
[1726638029638,0.003646,60412.0,60411.0,1.61049824]
[1726638031512,0.003646,60412.0,60411.0,1.46166141]
[1726638032214,0.003646,60412.0,60411.0,1.45966141]
[1726638032770,0.02961265,60412.0,60411.0,1.45956729]
[1726638032988,0.02961265,60412.0,60411.0,1.60853479]
[1726638033222,0.02961265,60412.0,60411.0,1.45956729]
[1726638034442,0.02961265,60412.0,60411.0,1.60853479]
[1726638035521,0.02961265,60412.0,60411.0,1.45956729]
[1726638036678,0.02961265,60412.0,60411.0,1.45955717]
[1726638037144,0.02961265,60412.0,60411.0,1.45955671]
[1726638038318,0.003646,60412.0,60411.0,1.45955671]
[1726638040892,0.003646,60412.0,60411.0,1.44129353]
[1726638041137,0.003646,60412.0,60411.0,1.459545]
[1726638041824,0.02961337,60412.0,60411.0,1.459545]
[1726638048541,0.003646,60412.0,60411.0,1.459545]
[1726638048770,0.003646,60412.0,60411.0,1.45955479]
[1726638051858,0.02961355,60412.0,60411.0,1.45955479]
[1726638053379,0.003646,60412.0,60411.0,1.45955479]
[1726638056585,0.02961298,60412.0,60411.0,1.44129353]
[1726638056829,0.02961298,60412.0,60411.0,1.45954515]
[1726638060376,0.02961298,60412.0,60411.0,1.45954246]
[1726638060574,0.003646,60412.0,60411.0,1.45954246]
[1726638060775,0.003646,60412.0,60411.0,1.44129353]
[1726638061005,0.003646,60412.0,60411.0,1.45954354]
[1726638061425,0.003646,60412.0,60411.0,1.45954388]
[1726638061580,0.003646,60412.0,60411.0,1.44129353]
[1726638061786,0.003646,60412.0,60411.0,1.45954354]
[1726638062564,0.003646,60412.0,60411.0,1.02847854]
[1726638062786,0.101046,60412.0,60411.0,0.83994302]
[1726638063207,0.101046,60412.0,60411.0,0.67253153]
[1726638063656,0.101046,60412.0,60411.0,1.00359653]
[1726638063851,0.101046,60412.0,60411.0,1.10326261]
[1726638066270,0.12701442,60412.0,60411.0,1.10326261]
[1726638066473,0.101046,60412.0,60411.0,1.10326261]
[1726638067797,0.003646,60412.0,60411.0,1.10326261]
[1726638070252,0.02961457,60412.0,60411.0,1.10326261]
[1726638074190,0.02961457,60412.0,60411.0,1.43432761]
[1726638075800,0.003646,60412.0,60411.0,1.43432761]
[1726638076223,0.003646,60412.0,60411.0,1.58345961]
[1726638078316,0.003646,60412.0,60411.0,1.48379353]
[1726638078543,0.003646,60412.0,60411.0,1.58345961]
[1726638078808,0.02961376,60412.0,60411.0,1.58345961]
[1726638079242,0.003646,60412.0,60411.0,1.58345961]
[1726638081645,0.003646,60412.0,60411.0,1.58345717]
[1726638082269,0.003646,60412.0,60411.0,1.25239217]
[1726638082478,0.003646,60412.0,60411.0,1.10326261]
[1726638082750,0.02961376,60412.0,60411.0,0.91916261]
[1726638082962,0.02961376,60412.0,60411.0,1.08469461]
[1726638083173,0.02961376,60412.0,60411.0,1.41575961]
[1726638083174,0.003646,60412.0,60411.0,1.41575961]
[1726638083382,0.003646,60412.0,60411.0,1.08469461]
[1726638084445,0.003646,60412.0,60411.0,1.41575961]
[1726638086857,0.02961379,60412.0,60411.0,1.41575961]
[1726638087489,0.02961379,60412.0,60411.0,1.08469461]
[1726638087933,0.02961379,60412.0,60411.0,1.41575961]
[1726638094806,0.095146,60412.0,60411.0,1.41575961]
[1726638095271,0.095146,60412.0,60411.0,1.08469461]
[1726638097487,0.12111458,60412.0,60411.0,1.08469461]
[1726638098844,0.12111458,60412.0,60411.0,1.41575961]
[1726638099545,0.02961458,60412.0,60411.0,1.41575961]
[1726638099793,0.02961458,60412.0,60411.0,1.43410239]
[1726638101343,0.02961458,60412.0,60411.0,1.43413785]
[1726638102924,0.003646,60412.0,60411.0,1.43413785]
[1726638105142,0.003646,60412.0,60411.0,1.41575961]
[1726638105342,0.003646,60412.0,60411.0,1.43417347]
[1726638106250,0.02961381,60412.0,60411.0,1.43417347]
[1726638108466,0.02961381,60412.0,60411.0,1.41575961]
[1726638108915,0.02961381,60412.0,60411.0,1.56493875]
[1726638109132,0.02961381,60412.0,60411.0,1.41575961]
[1726638109606,0.02961381,60412.0,60411.0,1.43419137]
[1726638112793,0.02961381,60412.0,60411.0,1.41575961]
[1726638113021,0.003646,60412.0,60411.0,1.43416873]
[1726638114129,0.003646,60412.0,60411.0,1.43418332]
[1726638115289,0.003646,60412.0,60411.0,0.77205332]
[1726638115510,0.003646,60412.0,60411.0,0.75362961]
[1726638115731,0.102946,60412.0,60411.0,0.75362961]
[1726638115948,0.102946,60412.0,60411.0,0.44407475]
[1726638116164,0.102946,60412.0,60411.0,0.5932438]
[1726638116598,0.102946,60412.0,60411.0,0.59324462]
[1726638117567,0.1289146,60412.0,60411.0,0.59324462]
[1726638118839,0.1289146,60412.0,60411.0,0.32804654]
[1726638119058,0.15547153,60412.0,60411.0,0.32804654]
[1726638119286,0.12950293,60412.0,60411.0,0.17887667]
[1726638122650,0.15547215,60412.0,60411.0,0.17887667]
[1726638122855,0.15547215,60412.0,60411.0,0.27854275]
[1726638123466,0.12950293,60412.0,60411.0,0.27854275]
[1726638124683,0.29503293,60412.0,60411.0,0.27854275]
[1726638125793,0.29299509,60412.0,60411.0,0.27854275]
[1726638126664,0.31896458,60412.0,60411.0,0.27854275]
[1726638127582,0.65002458,60412.0,60411.0,0.27854275]
[1726638128039,0.32061058,60412.0,60411.0,0.27854275]
[1726638128258,0.65167058,60412.0,60411.0,0.27854275]
[1726638128493,0.32061058,60412.0,60411.0,0.27854275]
[1726638128963,0.65167058,60412.0,60411.0,0.27854275]
[1726638129413,0.65167058,60412.0,60411.0,0.17887667]
[1726638129641,0.65167058,60412.0,60411.0,0.30316151]
[1726638130107,0.65167058,60412.0,60411.0,0.30315557]
[1726638131517,0.62570109,60412.0,60411.0,0.30315557]
[1726638131963,0.62570109,60412.0,60411.0,0.27829063]
[1726638132187,0.62570109,60412.0,60411.0,0.17887667]
[1726638134529,0.62570109,60412.0,60411.0,0.27827494]
[1726638135217,0.62570109,60412.0,60411.0,0.27827493]
[1726638136165,0.65167086,60412.0,60411.0,0.27827493]
[1726638139372,0.62570109,60412.0,60411.0,0.27827493]
[1726638142665,0.65167032,60412.0,60411.0,0.27827493]
[1726638143362,0.62570109,60412.0,60411.0,0.27827493]
[1726638145386,0.62570109,60412.0,60411.0,0.27824328]
[1726638146586,0.65167059,60412.0,60411.0,0.27824328]
[1726638150317,0.62570109,60412.0,60411.0,0.17887667]
[1726638150822,0.62570109,60412.0,60411.0,0.27824819]
[1726638151047,0.62570109,60412.0,60411.0,0.17887667]
[1726638151618,0.29464109,60412.0,60411.0,0.17887667]
[1726638152555,0.29464109,60412.0,60411.0,0.27824819]
[1726638153727,0.29464109,60412.0,60411.0,0.17887667]
[1726638154183,0.29464109,60412.0,60411.0,0.27824819]
[1726638155110,0.12911109,60412.0,60411.0,0.27824819]
[1726638155332,0.12911109,60412.0,60411.0,0.27826173]
[1726638156304,0.15508084,60412.0,60411.0,0.27826173]
[1726638156552,0.65167084,60412.0,60411.0,0.27826173]
[1726638156776,0.65167084,60412.0,60411.0,0.17887667]
[1726638157033,0.65167084,60412.0,60411.0,0.2534211]
[1726638157286,0.65167084,60412.0,60411.0,0.015823]
[1726638157724,0.65167084,60412.0,60411.0,0.11520806]
[1726638158198,0.62570109,60412.0,60411.0,0.11520806]
[1726638159873,0.62570109,60412.0,60411.0,0.015823]
[1726638160536,0.62570109,60412.0,60411.0,0.09038811]
[1726638161524,0.62570109,60412.0,60411.0,0.015823]
[1726638163329,0.29464109,60412.0,60411.0,0.015823]
[1726638163621,0.62570109,60412.0,60411.0,0.015823]
[1726638164327,0.62570109,60412.0,60411.0,0.11520806]
[1726638166372,0.65167083,60412.0,60411.0,0.11520806]
[1726638166596,0.62570109,60412.0,60411.0,0.11520806]
[1726638169360,0.62570109,60412.0,60411.0,0.015823]
[1726638169801,0.62570109,60412.0,60411.0,0.11527333]
[1726638170018,0.65167105,60412.0,60411.0,0.11527333]
[1726638173394,0.62570109,60412.0,60411.0,0.11527333]
[1726638174577,1.03296109,60412.0,60411.0,0.11527333]
[1726638174790,1.46368717,60412.0,60411.0,0.015823]
[1726638175198,1.87029108,60412.0,60411.0,0.015823]
[1726638175692,1.87068292,60412.0,60411.0,0.000823]
[1726638175923,1.87468292,60412.0,60411.0,0.000823]
[1726638176157,1.87768292,60412.0,60411.0,0.000823]
[1726638176439,1.87168292,60412.0,60411.0,0.000823]
[1726638176679,1.91255936,60412.0,60411.0,0.001823]
[1726638177709,1.91255936,60412.0,60402.0,0.0048643]
[1726638177710,1.42634708,60403.0,60402.0,0.0048643]
[1726638178157,1.45436302,60403.0,60402.0,0.0048643]
[1726638178879,1.4803405,60403.0,60402.0,0.0048643]
[1726638179579,1.4933405,60403.0,60402.0,0.0058643]
[1726638180047,1.5063405,60403.0,60402.0,0.0068643]
[1726638181735,1.91422661,60403.0,60402.0,0.0068643]
[1726638181956,1.91622661,60403.0,60402.0,0.0068643]
[1726638183108,1.89024913,60403.0,60402.0,0.0068643]
[1726638183569,1.88824913,60403.0,60402.0,0.0068643]
[1726638184027,1.89831845,60403.0,60402.0,0.0068643]
[1726638186147,2.02429687,60403.0,60402.0,0.0068643]
[1726638186421,2.02429687,60403.0,60400.0,0.001646]
[1726638186422,1.49204,60401.0,60400.0,0.001646]
[1726638186654,1.81709121,60401.0,60400.0,0.001646]
[1726638186928,2.17605784,60401.0,60400.0,0.001646]
[1726638188117,1.85593784,60401.0,60400.0,0.002646]
[1726638188634,1.86693784,60401.0,60400.0,0.002646]
[1726638192237,1.976281,60397.0,60395.0,0.004002]
[1726638192499,2.32337241,60397.0,60395.0,0.004002]
[1726638192730,2.35117998,60397.0,60395.0,0.004002]
[1726638192958,2.41117998,60397.0,60395.0,0.004002]
[1726638194139,2.42517998,60397.0,60395.0,0.004002]
[1726638194854,2.43917998,60397.0,60395.0,0.004002]
[1726638195314,2.45116468,60397.0,60395.0,0.004002]
[1726638195566,2.46516468,60397.0,60395.0,0.004002]
[1726638197443,2.46516468,60397.0,60377.0,0.004002]
[1726638197444,0.874969,60378.0,60377.0,0.004002]
[1726638197688,1.61636284,60378.0,60377.0,0.004002]
[1726638197928,2.3076167,60378.0,60377.0,0.004002]
[1726638198177,2.32249169,60378.0,60377.0,0.004002]
[1726638198880,2.33649169,60378.0,60377.0,0.004002]
[1726638199609,0.267653,60367.0,60366.0,0.0032183]
[1726638199864,1.57815072,60367.0,60366.0,0.0032183]
[1726638200105,1.57815072,60367.0,60351.0,0.0002]
[1726638200106,0.59668308,60360.0,60351.0,0.0002]
[1726638200325,1.34204729,60360.0,60351.0,0.0002]
[1726638200556,1.35963004,60360.0,60351.0,0.0002]
[1726638200798,1.38562702,60360.0,60351.0,0.0002]
[1726638201747,1.39262702,60360.0,60351.0,0.0002]
[1726638201989,0.05057973,60360.0,60353.0,0.33138]
[1726638202226,0.21625173,60360.0,60354.0,0.165687]
[1726638202462,0.21625173,60360.0,60352.0,0.09966608]
[1726638202463,0.20925173,60360.0,60355.0,0.165685]
[1726638202698,0.38192473,60360.0,60351.0,0.0941]
[1726638202923,0.54759673,60360.0,60351.0,0.0941]
[1726638203160,0.51459975,60360.0,60351.0,0.0941]
[1726638203384,0.52259975,60360.0,60351.0,0.0941]
[1726638203872,0.52259975,60360.0,60352.0,0.165691]
[1726638203873,0.53359975,60360.0,60352.0,0.165691]
[1726638204108,0.52259975,60360.0,60352.0,0.165691]
[1726638204327,0.93661896,60360.0,60351.0,0.0002]
[1726638204574,0.94361896,60360.0,60351.0,0.0002]
[1726638204811,0.93661896,60360.0,60351.0,0.0002]
[1726638205030,0.94461896,60360.0,60351.0,0.0002]
[1726638205475,1.08072117,60360.0,60351.0,0.0002]
[1726638205720,1.41906617,60360.0,60351.0,0.0002]
[1726638205988,1.42706617,60360.0,60351.0,0.0002]
[1726638206275,1.44606399,60360.0,60351.0,0.0002]
[1726638206510,1.45406399,60360.0,60351.0,0.0002]
[1726638206976,1.44606399,60360.0,60351.0,0.0002]
[1726638207194,1.43806399,60360.0,60351.0,0.0002]
[1726638207673,1.44606399,60360.0,60351.0,0.0002]
[1726638207895,1.28596178,60360.0,60351.0,0.0002]
[1726638208129,0.96561678,60360.0,60351.0,0.0002]
[1726638208362,0.97761678,60360.0,60351.0,0.0002]
[1726638210440,0.97761678,60360.0,60359.0,0.004825]
[1726638213183,0.97761678,60360.0,60359.0,0.004785]
[1726638216227,0.95161896,60360.0,60359.0,0.004785]
[1726638217129,0.53759975,60360.0,60359.0,0.004785]
[1726638217610,0.86894475,60360.0,60359.0,0.004785]
[1726638218121,1.28296396,60360.0,60359.0,0.004785]
[1726638219036,0.86894475,60360.0,60359.0,0.004785]
[1726638220893,0.96514475,60360.0,60359.0,0.004785]
[1726638226066,0.99114271,60360.0,60359.0,0.004785]
[1726638229087,0.89494271,60360.0,60359.0,0.004785]
[1726638233226,0.06658071,60360.0,60359.0,0.004785]
[1726638233687,0.06658071,60360.0,60359.0,0.17046]
[1726638233892,0.04899796,60360.0,60359.0,0.50181]
[1726638234111,0.03699796,60360.0,60359.0,0.50181]
[1726638234354,0.011,60360.0,60359.0,0.83316]
[1726638234567,0.019,60360.0,60359.0,0.50181]
[1726638235023,0.009648,60360.0,60359.0,0.50181]
[1726638235250,0.017648,60360.0,60359.0,0.17046]
[1726638235477,0.017648,60360.0,60359.0,0.004785]
[1726638235478,0.17532,60360.0,60359.0,0.004785]
[1726638235725,0.02716727,60360.0,60359.0,0.004785]
[1726638236892,0.02216727,60360.0,60359.0,0.004785]
[1726638237152,0.01916727,60360.0,60359.0,0.004785]
[1726638237613,0.03116727,60360.0,60359.0,0.004785]
[1726638238072,0.02816727,60360.0,60359.0,0.004785]
[1726638238564,0.03616727,60360.0,60359.0,0.004785]
[1726638238797,0.06216218,60360.0,60359.0,0.004785]
[1726638240221,0.2276348,60360.0,60359.0,0.004785]
[1726638240460,0.0619628,60360.0,60359.0,0.004785]
[1726638242090,0.0619628,60360.0,60359.0,0.50181]
[1726638242328,0.04444353,60360.0,60359.0,0.50181]
[1726638243010,0.04444353,60360.0,60359.0,0.17046]
[1726638243253,0.03596789,60360.0,60359.0,0.17046]
[1726638243725,0.03596789,60360.0,60359.0,0.004785]
[1726638243954,0.03596789,60360.0,60359.0,0.17046]
[1726638244417,0.03596789,60360.0,60359.0,0.004785]
[1726638245589,0.03596789,60360.0,60359.0,0.17046]
[1726638245817,0.0318312,60360.0,60359.0,0.004785]
[1726638246045,0.05782624,60360.0,60359.0,0.17046]
[1726638246518,0.0318312,60360.0,60359.0,0.17046]
[1726638246752,0.05782624,60360.0,60359.0,0.17046]
[1726638247962,0.05947424,60360.0,60359.0,0.004785]
[1726638248184,0.0334792,60360.0,60359.0,0.004785]
[1726638249939,0.1991512,60360.0,60359.0,0.004785]
[1726638251531,0.22514721,60360.0,60359.0,0.004785]
[1726638251773,0.05947521,60360.0,60359.0,0.004785]
[1726638252938,0.0334792,60360.0,60359.0,0.004785]
[1726638253154,0.1991512,60360.0,60359.0,0.004785]
[1726638254076,0.0334792,60360.0,60359.0,0.004785]
[1726638254971,0.1991512,60360.0,60359.0,0.004785]
[1726638256167,0.2251465,60360.0,60359.0,0.004785]
[1726638259160,0.1991512,60360.0,60359.0,0.004785]
[1726638259329,0.0334792,60360.0,60359.0,0.004785]
[1726638259572,0.0334792,60360.0,60359.0,0.59391]
[1726638259778,0.0334792,60360.0,60359.0,0.26256]
[1726638259779,0.01595993,60360.0,60359.0,0.26256]
[1726638260621,0.04195541,60360.0,60359.0,0.096885]
[1726638260823,0.04195541,60360.0,60359.0,0.17046]
[1726638261051,0.05981617,60360.0,60359.0,0.17046]
[1726638261287,0.04195541,60360.0,60359.0,0.17046]
[1726638263326,0.01595993,60360.0,60359.0,0.17046]
[1726638264926,0.01595993,60360.0,60359.0,1.0960032]
[1726638265153,0.01595993,60360.0,60359.0,1.1940032]
[1726638265367,0.01595993,60360.0,60359.0,1.62480037]
[1726638265565,0.01595993,60360.0,60359.0,1.8567032]
[1726638265683,0.01595993,60360.0,60359.0,1.8587032]
[1726638265907,0.009648,60360.0,60359.0,1.8887032]
[1726638266140,0.011648,60360.0,60359.0,1.8867032]
[1726638266582,0.009648,60360.0,60359.0,1.8867032]
[1726638267060,0.009648,60360.0,60359.0,1.9887032]
[1726638267563,0.001648,60360.0,60359.0,1.6573532]
[1726638267791,0.001648,60360.0,60359.0,1.78357633]
[1726638268009,0.001648,60360.0,60359.0,1.83579232]
[1726638268930,0.02763735,60360.0,60359.0,1.83579232]
[1726638269445,0.02763735,60360.0,60359.0,1.71156919]
[1726638269670,0.02763735,60360.0,60359.0,1.83579232]
[1726638270480,0.02763735,60360.0,60359.0,1.71156919]
[1726638272616,0.02763735,60360.0,60359.0,1.78606868]
[1726638272824,0.02763735,60360.0,60359.0,1.81089841]
[1726638276943,0.001648,60360.0,60359.0,1.81089841]
[1726638277182,0.001648,60360.0,60359.0,1.81089971]
[1726638278894,0.001648,60360.0,60359.0,1.00021367]
[1726638279143,0.001648,60360.0,60359.0,0.24634275]
[1726638279364,0.001648,60360.0,60359.0,0.008785]
[1726638279365,0.16732,60360.0,60359.0,0.008785]
[1726638279817,0.51661209,60360.0,60359.0,0.008785]
[1726638280515,0.51661209,60360.0,60359.0,0.006785]
[1726638280748,0.18526709,60360.0,60359.0,0.004785]
[1726638280958,0.84795709,60360.0,60359.0,0.004785]
[1726638281172,0.84995709,60360.0,60359.0,0.004785]
[1726638281393,0.93385709,60360.0,60359.0,0.004785]
[1726638281667,0.92985709,60360.0,60359.0,0.004785]
[1726638282125,0.94585709,60360.0,60359.0,0.004785]
[1726638282357,0.92985709,60360.0,60359.0,0.004785]
[1726638282600,1.4346763,60360.0,60359.0,0.004785]
[1726638282812,1.03365709,60360.0,60359.0,0.004785]
[1726638283028,1.05965347,60360.0,60359.0,0.004785]
[1726638283490,1.47367268,60360.0,60359.0,0.004785]
[1726638283946,1.46067268,60360.0,60359.0,0.004785]
[1726638284408,1.58667268,60360.0,60359.0,0.004785]
[1726638284630,1.57367268,60360.0,60359.0,0.004785]
[1726638284862,1.57367268,60360.0,60351.0,0.0002]
[1726638284863,1.252361,60352.0,60351.0,0.0002]
[1726638285072,1.48813879,60352.0,60351.0,0.0002]
[1726638285316,2.06607401,60352.0,60351.0,0.0002]
[1726638285543,1.68168501,60352.0,60351.0,0.0002]
[1726638285763,1.70768665,60352.0,60351.0,0.0002]
[1726638286204,1.71768665,60352.0,60351.0,0.0002]
[1726638286437,1.06151986,60352.0,60351.0,0.0002]
[1726638286693,1.16151986,60352.0,60351.0,0.0002]
[1726638287144,0.83013086,60352.0,60351.0,0.0002]
[1726638287640,1.15151986,60352.0,60351.0,0.0002]
[1726638287910,1.15451986,60352.0,60351.0,0.0002]
[1726638288119,1.15451986,60352.0,60351.0,0.00016]
[1726638288363,0.82313086,60352.0,60351.0,0.00016]
[1726638288584,0.83513086,60352.0,60351.0,0.00016]
[1726638288809,1.15251986,60352.0,60351.0,0.00016]
[1726638289052,1.16451986,60352.0,60351.0,0.00016]
[1726638289303,1.15251986,60352.0,60351.0,0.00016]
[1726638289756,1.23629213,60352.0,60351.0,0.00016]
[1726638290666,1.24829213,60352.0,60351.0,0.00016]
[1726638290871,1.55568113,60352.0,60351.0,0.00016]
[1726638291087,1.23829213,60352.0,60351.0,0.00016]
[1726638291325,1.58368113,60352.0,60351.0,0.00016]
[1726638291795,1.56968113,60352.0,60351.0,0.00016]
[1726638292018,1.58368113,60352.0,60351.0,0.00016]
[1726638292451,1.55568113,60352.0,60351.0,0.00016]
[1726638292891,1.56968113,60352.0,60351.0,0.00016]
[1726638293106,1.23829213,60352.0,60351.0,0.00016]
[1726638293333,0.82313086,60352.0,60351.0,0.00016]
[1726638293783,1.15451986,60352.0,60351.0,0.00016]
[1726638294015,0.83713086,60352.0,60351.0,0.00016]
[1726638294230,1.15451986,60352.0,60351.0,0.00016]
[1726638294741,1.14051986,60352.0,60351.0,0.000984]
[1726638294966,1.15351986,60352.0,60351.0,0.000984]
[1726638295642,1.15451986,60352.0,60351.0,0.000984]
[1726638296097,1.14051986,60352.0,60351.0,0.000984]
[1726638297433,1.15451986,60352.0,60351.0,0.000984]
[1726638297653,1.16851986,60352.0,60351.0,0.000984]
[1726638297891,1.14051986,60352.0,60351.0,0.000984]
[1726638298338,1.15451986,60352.0,60351.0,0.000984]
[1726638298567,1.16851986,60352.0,60351.0,0.000984]
[1726638299581,1.25229213,60352.0,60351.0,0.000984]
[1726638299778,1.58368113,60352.0,60351.0,0.000984]
[1726638300056,1.68355505,60352.0,60351.0,0.000984]
[1726638300491,1.15451986,60352.0,60351.0,0.000984]
[1726638301162,1.16851986,60352.0,60351.0,0.000984]
[1726638301406,1.14051986,60352.0,60351.0,0.000984]
[1726638301620,1.15351986,60352.0,60351.0,0.000984]
[1726638301847,0.83513086,60352.0,60351.0,0.000984]
[1726638302306,1.16651986,60352.0,60351.0,0.000984]
[1726638302792,0.16984786,60352.0,60351.0,0.000984]
[1726638303006,0.04384622,60352.0,60351.0,0.166681]
[1726638303681,0.20954022,60352.0,60351.0,0.000984]
[1726638303920,0.20954022,60352.0,60351.0,0.498075]
[1726638303921,0.04384622,60352.0,60351.0,0.498075]
[1726638304131,0.001648,60359.0,60351.0,0.332378]
[1726638304349,0.01807933,60358.0,60353.0,0.16569]
[1726638304590,0.01807933,60358.0,60354.0,0.165689]
[1726638304789,0.01807933,60358.0,60351.0,0.332378]
[1726638304790,0.01807933,60358.0,60355.0,0.165686]
[1726638305698,0.02707933,60358.0,60355.0,0.165686]
[1726638305983,0.05307641,60358.0,60353.0,0.16569]
[1726638306648,0.165681,60357.0,60353.0,0.16569]
[1726638306878,0.03499708,60358.0,60354.0,0.165688]
[1726638307121,0.01807933,60357.0,60354.0,0.165688]
[1726638308474,0.03407933,60357.0,60354.0,0.165688]
[1726638308937,0.03407933,60357.0,60352.0,0.331387]
[1726638309196,0.03407933,60357.0,60351.0,0.000984]
[1726638309197,0.53112233,60357.0,60351.0,0.000984]
[1726638309456,0.165683,60356.0,60352.0,0.165693]
[1726638309696,0.165683,60356.0,60351.0,0.000984]
[1726638309697,0.01809209,60355.0,60353.0,0.165691]
[1726638309929,0.17368,60357.0,60353.0,0.165691]
[1726638309930,0.18168,60357.0,60353.0,0.165691]
[1726638310163,0.01809209,60356.0,60353.0,0.165691]
[1726638310621,0.01809209,60356.0,60354.0,0.165688]
[1726638310622,0.04408996,60356.0,60354.0,0.165688]
[1726638310857,0.006,60355.0,60354.0,0.497066]
[1726638311322,0.02599787,60356.0,60355.0,0.165686]
[1726638311547,0.03999787,60356.0,60355.0,0.165686]
[1726638311789,0.03299787,60356.0,60355.0,0.165686]
[1726638312505,0.03299787,60356.0,60355.0,0.497058]
[1726638312955,0.02599787,60356.0,60355.0,0.497058]
[1726638313180,0.03299787,60356.0,60355.0,0.497058]